[Event "7th Sharjah Masters 2024"]
[Site "Sharjah"]
[Date "2024.05.17"]
[Round "4.37"]
[White "Jumabayev, Rinat"]
[Black "Madaminov, Mukhiddin"]
[Result "1/2-1/2"]
[ECO "E05"]
[WhiteElo "2597"]
[BlackElo "2506"]
[Annotator "TA"]
[PlyCount "57"]
[EventDate "2024.05.13"]
[EventType "swiss"]
[EventCountry "UAE"]
[SourceTitle "playchess.com"]
[Source "ChessBase"]
[SourceQuality "1"]
[TimeControl "5400+30"]

{[%evp 18,57,14,11,11,13,0,10,8,6,12,14,16,13,18,15,19,29,17,10,13,7,12,17,10,12,10,7,6,2,10,2,24,8,10,9,11,9,9,0,0,0]} 1. Nf3 {[%emt 0:00:08]} Nf6 {[%emt 0:00:57]} 2. g3 {[%emt 0:02:36]} d5 {[%emt 0:02:23]} 3. Bg2 {[%emt 0:00:08]} e6 {[%emt 0:01:33]} 4. O-O {[%emt 0:00:46]} Be7 {[%emt 0:00:32]} 5. c4 {[%emt 0:05:02]} O-O {[%emt 0:01:34]} 6. d4 {[%emt 0:00:07]} dxc4 {[%emt 0:00:31]} 7. Qc2 {[%emt 0:00:20]} a6 {[%emt 0:01:35]} 8. a4 {[%emt 0:00:12]} Bd7 {[%emt 0:01:19]} 9. Qxc4 {[%emt 0:00:16]} Bc6 {[%emt 0:00:19]} 10. Bg5 {[%emt 0:00:15]} Nbd7 {[%emt 0:01:00]} 11. Rc1 {[%emt 0:06:40]} h6 {[%emt 0:02:09]} 12. Bxf6 {[%emt 0:06:40]} Nxf6 {[%emt 0:00:36]} 13. Nc3 {[%emt 0:00:47]} Bd6 {[%emt 0:05:12]} 14. b4 {[%emt 0:20:42]} Bd5 {[%emt 0:00:50]} 15. Nxd5 {[%emt 0:00:08]} exd5 {[%emt 0:00:07]} 16. Qb3 {[%emt 0:06:55]} c6 {[%emt 0:04:43]} 17. e3 {[%emt 0:02:01]} g6 {[%emt 0:05:52]} 18. b5 {[%emt 0:11:22]} axb5 {[%emt 0:01:40]} 19. axb5 {[%emt 0:00:03]} Rxa1 {[%emt 0:00:09]} 20. Rxa1 {[%emt 0:00:01]} Qb6 {[%emt 0:00:11]} 21. Bf1 {[%emt 0:00:27]} Kg7 {[%emt 0:01:55]} 22. Qa4 {[%emt 0:06:33]} c5 {[%emt 0:02:38]} 23. dxc5 {[%emt 0:00:18]} Bxc5 {[%emt 0:00:12]} 24. Rd1 {[%emt 0:00:09]} Re8 {[%emt 0:05:33]} 25. Kg2 {[%emt 0:01:07]} (25. Bg2 $5) 25... Qd6 {[%emt 0:01:54] The position is equal.} 26. Be2 {[%emt 0:04:09]} Bb6 {[%emt 0:01:26]} 27. Qa2 {[%emt 0:02:51]} Rc8 {[%emt 0:05:35]} 28. Qb2 {[%emt 0:04:07]} Qc5 {[%emt 0:00:30]} 29. Qe5 {[%emt 0:08:33] Not much happened in this game.   Weighted Error Value: White=0.03 (flawless) /Black=0.02 (flawless) .  OK:         	White=10    	Black=8} 1/2-1/2

[Event "7th Sharjah Masters 2024"]
[Site "Sharjah"]
[Date "2024.05.17"]
[Round "4.38"]
[White "Gholami Orimi, Mahdi"]
[Black "Sethuraman, S.P."]
[Result "1-0"]
[ECO "E48"]
[WhiteElo "2470"]
[BlackElo "2593"]
[Annotator "TA"]
[PlyCount "83"]
[EventDate "2024.05.13"]
[EventType "swiss"]
[EventCountry "UAE"]
[SourceTitle "playchess.com"]
[Source "ChessBase"]
[SourceQuality "1"]
[TimeControl "5400+30"]

{[%evp 11,83,22,21,12,0,0,0,0,0,0,14,0,0,0,35,11,23,35,49,43,43,-28,-20,-53,2,-57,-39,-58,-59,-68,-60,-67,-45,-72,-68,-72,-88,-61,0,0,0,0,0,0,0,0,70,97,91,84,183,29,832,820,830,807,835,834,824,829,760,697,29977,598,661,639,1406,1287,5397,672,664,619,619,602]} 1. d4 {[%emt 0:00:16]} Nf6 {[%emt 0:00:09]} 2. c4 {[%emt 0:00:09]} e6 {[%emt 0:00:05]} 3. Nc3 {[%emt 0:00:13]} Bb4 {[%emt 0:00:06]} 4. e3 {[%emt 0:00:17]} O-O {[%emt 0:00:09]} 5. Bd3 {[%emt 0:00:12]} Re8 {[%emt 0:00:08]} 6. Nge2 {[%emt 0:01:59]} d5 {[%emt 0:00:09]} 7. a3 {[%emt 0:01:27]} Bf8 {[%emt 0:00:07]} 8. O-O {[%emt 0:00:55]} b6 {[%emt 0:00:23]} 9. e4 {[%emt 0:06:31] The position is equal.} dxe4 {[%emt 0:00:38]} 10. Nxe4 {[%emt 0:00:27]} Bb7 {[%emt 0:00:04]} 11. Nxf6+ {[%emt 0:15:12]} Qxf6 {[%emt 0:00:07]} 12. Qc2 {[%emt 0:00:10]} Qh4 {[%emt 0:00:25]} 13. Bf4 {[%emt 0:04:32]} Bd6 {[%emt 0:00:51]} 14. Bg3 {[%emt 0:02:08]} Bxg3 {[%emt 0:01:49]} 15. fxg3 {[%emt 0:13:47]} Qh6 {[%emt 0:00:20]} 16. Rf4 {[%emt 0:00:10] Active counter play!} (16. Rae1 $14) 16... Nd7 $11 {[%emt 0:02:14][%cal Bb8d7,Bd7e5,Be5g4,Bg4e3][%mdl 32]} 17. Kh1 {[%emt 0:02:57]} f5 {[%emt 0:14:06] [#]} (17... g5 $15 18. Bxh7+ Kf8 (18... Qxh7 $2 19. Qxh7+ Kxh7 20. Rxf7+ Kg8 21. Rxd7 $16)) 18. d5 $1 {[%emt 0:14:03]} Ne5 $15 {[%emt 0:04:31]} 19. Nd4 {[%emt 0:08:55]} g5 {[%emt 0:04:27]} 20. Rff1 {[%emt 0:01:03]} Ng4 {[%emt 0:00:06][%csl Gg4][%cal Rh6h2]} (20... exd5 21. Nxf5 (21. Bxf5 $2 c5 $17) 21... Qc6 22. Nd4 $16) 21. h3 {[%emt 0:00:14]} Ne3 {[%emt 0:00:08]} (21... exd5 $2 22. Nxf5 (22. Bxf5 $2 Ne3 $19) 22... Qf6 23. hxg4 $18) 22. Qd2 {[%emt 0:06:20]} Nxf1 {[%emt 0:02:39]} 23. Rxf1 {[%emt 0:00:14]} Rad8 $1 {[%emt 0:00:36]} 24. Kh2 {[%emt 0:03:50]} Qg7 {[%emt 0:12:23]} (24... exd5 $2 25. Nxf5 Qf6 26. Nd6 $18) (24... Bc8 $1 $15) 25. Nxe6 $11 {[%emt 0:06:27]} Rxe6 {[%emt 0:00:12]} 26. dxe6 {[%emt 0:00:10]} Be4 {[%emt 0:00:12]} 27. Re1 $1 {[%emt 0:00:07][%cal Od2e3,Bf1e1,Be1e3,Be3e4][%mdl 32] Black must now prevent Qe3!} Rd6 {[%emt 0:19:01]} (27... Rxd3 $2 28. Qxd3 Bxd3 29. e7 $18) (27... Qe7 $5 28. Re3 $8 Rd4 $14) 28. Re3 {[%emt 0:08:05]} Qe5 {[%emt 0:00:30] [#]} (28... Qd4 $1 $11) 29. c5 $1 $36 {[%emt 0:02:18][%mdl 2048] White has strong initiative.} bxc5 {[%emt 0:02:36] Threatens to win with ...c4.} 30. Qe2 {[%emt 0:00:35][%cal Rd3e4]} Kh8 {[%emt 0:07:01] [#]} (30... Kg7 $16) 31. Qf1 $2 {[%emt 0:01:06]} (31. Qf3 $1 $18 {[%cal Re3e4] White threatens Rxe4 and mate.} g4 (31... Rxe6 $2 32. Rxe4 Qd5 33. Rxe6 $18) 32. Qf1 (32. hxg4 Qxe6 33. Qf4 Qh6+ 34. Qxh6 Rxh6+ 35. Kg1 Bxd3 $18) (32. Rxe4 Qxe4 33. Qxe4 fxe4 $18)) 31... Kg7 $2 {[%emt 0:08:09][%mdl 8192] [#] Black cannot hold the game after this.} (31... Rxe6 $2 32. Rxe4 (32. Bxe4 Kg7 $16) 32... Qf6 33. Rxe6 Qxe6 34. Bxf5 $18 (34. Qxf5 Qe7 $18)) (31... h5 $11) 32. Rxe4 $1 $18 {[%emt 0:00:40][%mdl 512]} fxe4 {[%emt 0:00:15][%mdl 4096] Endgame. KQR-KQB} 33. Qf7+ {[%emt 0:00:05]} Kh6 {[%emt 0:00:02]} 34. Bc4 {[%emt 0:00:53] Intending e7 and mate.} Rd8 {[%emt 0:01:18]} 35. e7 {[%emt 0:00:14]} Rh8 {[%emt 0:00:04]} 36. Bb5 {[%emt 0:01:03]} e3 {[%emt 0:00:34]} 37. Kg1 {[%emt 0:00:42]} ({Worse is} 37. e8=B e2 $11) (37. Bd3 $142 Qg7 38. Qe6+ (38. e8=B Qxf7 39. Bxf7 Kg7 $11) (38. e8=Q Rxe8 39. Qxe8 g4 $18) 38... Qg6 39. Bxg6 hxg6 40. e8=Q (40. e8=B Rxe8 41. Qxe8 Kg7 $18) 40... Rxe8 41. Qxe8 Kg7 42. Qxe3) 37... c6 {[%emt 0:06:38] White is clearly winning.} 38. Be2 {[%emt 0:00:31]} g4 {[%emt 0:06:39]} 39. Bxg4 {[%emt 0:00:18] Threatening mate with Be2.} Rb8 {[%emt 0:00:04]} 40. Be2 {[%emt 0:00:39]} (40. Bf5 $142 Qh8 41. Qe6+ Kg7 42. Qxe3 (42. Qxc6 Qe8 $18)) 40... Qxg3 {[%emt 0:05:00] ...Qf2+ is the strong threat.} 41. Qf6+ {[%emt 0:00:09]} ({Weaker is} 41. e8=Q Rxe8 42. Qxe8 (42. Qh5+ Kg7 $11) 42... Qf2+ 43. Kh2 Qxe2 $11) 41... Qg6 {[%emt 0:00:08]} 42. Qf4+ {[%emt 0:00:49] Weighted Error Value: White=0.54/Black=0.42.  Loses game:     	---       	Black=1      Mistake:       	White=3     	Black=4      Inaccurate:     	White=2     	Black=2      OK:         	White=5     	Black=10     Best:        	White=1     	Black=3      Strong:       	White=1     	Black=1      Brilliant:      	White=2     	---} 1-0

[Event "7th Sharjah Masters 2024"]
[Site "Sharjah"]
[Date "2024.05.17"]
[Round "4.39"]
[White "Peralta, Fernando"]
[Black "Yilmazyerli, Mert"]
[Result "1/2-1/2"]
[ECO "D27"]
[WhiteElo "2575"]
[BlackElo "2522"]
[Annotator "TA"]
[PlyCount "30"]
[EventDate "2024.05.13"]
[EventType "swiss"]
[EventCountry "UAE"]
[SourceTitle "playchess.com"]
[Source "ChessBase"]
[SourceQuality "1"]
[TimeControl "5400+30"]

{[%evp 16,30,18,8,29,31,35,29,27,20,8,16,10,0,6,8,11]} 1. d4 {[%emt 0:00:03]} d5 {[%emt 0:01:45]} 2. c4 {[%emt 0:00:14]} dxc4 {[%emt 0:00:27]} 3. Nf3 {[%emt 0:00:14]} Nf6 {[%emt 0:00:07]} 4. e3 {[%emt 0:00:04]} e6 {[%emt 0:00:05]} 5. Bxc4 {[%emt 0:00:05]} a6 {[%emt 0:00:09]} 6. O-O {[%emt 0:00:13]} c5 {[%emt 0:00:05]} 7. a4 {[%emt 0:00:35]} Nc6 {[%emt 0:00:28]} 8. Qe2 {[%emt 0:00:20]} Be7 {[%emt 0:00:39]} 9. Rd1 {[%emt 0:02:58]} Qc7 {[%emt 0:00:32]} 10. dxc5 {[%emt 0:01:32]} O-O {[%emt 0:03:46]} 11. b3 {[%emt 0:02:40]} Ne4 {[%emt 0:00:46] White has an edge.} 12. Bb2 {[%emt 0:17:24]} Nxc5 {[%emt 0:00:07] The position is equal.} 13. Nbd2 {[%emt 0:01:14]} Rd8 {[%emt 0:00:19]} 14. Rac1 {[%emt 0:04:50]} Bd7 {[%emt 0:00:06]} 15. Ne1 {[%emt 0:06:24]} Bd6 {[%emt 0:00:21] Weighted Error Value: White=0.04 (flawless) /Black=0.04 (flawless) .  OK:         	White=3     	Black=2} 1/2-1/2

[Event "7th Sharjah Masters 2024"]
[Site "Sharjah"]
[Date "2024.05.17"]
[Round "4.40"]
[White "Dudin, Gleb"]
[Black "Dronavalli, Harika"]
[Result "1/2-1/2"]
[ECO "E05"]
[WhiteElo "2554"]
[BlackElo "2504"]
[Annotator "TA"]
[PlyCount "51"]
[EventDate "2024.05.13"]
[EventType "swiss"]
[EventCountry "UAE"]
[SourceTitle "playchess.com"]
[Source "ChessBase"]
[SourceQuality "1"]
[TimeControl "5400+30"]

{[%evp 14,51,14,20,47,39,36,0,23,26,15,0,11,0,0,0,0,-26,-27,-31,-18,-14,-22,-38,0,-12,0,0,0,0,0,0,0,0,0,0,0,0,0,0]} 1. d4 {[%emt 0:03:54]} d5 {[%emt 0:00:11][%cal Bd7d5,Bd5c4][%mdl 32]} 2. c4 {[%emt 0:00:13]} e6 {[%emt 0:00:06]} 3. Nf3 {[%emt 0:00:24]} Nf6 {[%emt 0:00:15]} 4. g3 {[%emt 0:00:17]} Be7 {[%emt 0:00:09]} 5. Bg2 {[%emt 0:00:41]} O-O {[%emt 0:00:09]} 6. O-O {[%emt 0:00:11]} dxc4 {[%emt 0:00:24]} 7. Qc2 {[%emt 0:00:13]} a6 {[%emt 0:00:12]} 8. a4 {[%emt 0:00:37]} h6 {[%emt 0:00:29]} 9. Rd1 {[%emt 0:09:32][%cal Ob1d2]} Nc6 {[%emt 0:00:40]} 10. Bf4 {[%emt 0:05:28]} Nd5 {[%emt 0:10:17]} 11. Qxc4 {[%emt 0:10:42]} Nxf4 {[%emt 0:04:34]} 12. gxf4 {[%emt 0:00:08]} Qd5 {[%emt 0:03:11]} 13. Nbd2 {[%emt 0:07:26][%cal Bb1d2,Bd2c4,Bc4e5][%mdl 32]} Qxc4 {[%emt 0:07:49]} 14. Nxc4 {[%emt 0:00:08]} Rd8 {[%emt 0:03:41]} 15. a5 {[%emt 0:09:34]} Rb8 {[%emt 0:03:28]} 16. e3 {[%emt 0:01:40]} Bd7 {[%emt 0:01:15][%cal Bc8d7,Bd7e8,Be8b5][%mdl 32]} 17. Nfe5 {[%emt 0:02:41]} Nxe5 {[%emt 0:04:17]} 18. Nxe5 {[%emt 0:00:12]} Be8 {[%emt 0:02:25]} 19. Rdc1 {[%emt 0:00:20] The position is equal.} Bd6 {[%emt 0:02:09]} 20. Nd3 {[%emt 0:01:19]} Bb5 {[%emt 0:07:19]} 21. Nc5 {[%emt 0:01:58]} c6 {[%emt 0:00:57]} 22. Bf1 {[%emt 0:02:07]} Bxc5 {[%emt 0:04:37]} 23. Rxc5 {[%emt 0:00:35]} Bxf1 {[%emt 0:06:54]} 24. Kxf1 {[%emt 0:00:09]} Rd5 {[%emt 0:00:08]} 25. b4 {[%emt 0:00:44]} g5 {[%emt 0:02:48]} 26. fxg5 {[%emt 0:01:04] Weighted Error Value: White=0.05 (flawless) /Black=0.06 (flawless) .  Inaccurate:     	White=2     	Black=1      OK:         	White=8     	Black=11} 1/2-1/2

[Event "7th Sharjah Masters 2024"]
[Site "Sharjah"]
[Date "2024.05.17"]
[Round "4.41"]
[White "Assaubayeva, Bibisara"]
[Black "Yilmaz, Mustafa"]
[Result "1/2-1/2"]
[ECO "A13"]
[WhiteElo "2481"]
[BlackElo "2641"]
[Annotator "TA"]
[PlyCount "109"]
[EventDate "2024.05.13"]
[EventType "swiss"]
[EventCountry "UAE"]
[SourceTitle "playchess.com"]
[Source "ChessBase"]
[SourceQuality "1"]
[TimeControl "5400+30"]

{[%evp 43,109,63,79,-48,-41,-55,-49,-40,107,108,148,144,139,-94,-92,-99,-19,-16,-20,-20,-20,-17,-19,-83,-80,-80,-79,-80,-80,-88,-88,-81,-80,-87,-87,-87,-81,-81,-43,-44,-45,-60,-13,-13,0,-60,-34,-34,-34,-34,-34,-60,-60,-60,-60,-60,-28,-60,-60,-60,-60,-78,-78,-78,-78,-78,-78,-78]} 1. Nf3 {[%emt 0:00:17]} d5 {[%emt 0:00:15]} 2. e3 {[%emt 0:00:27]} Nf6 {[%emt 0:01:19]} 3. c4 {[%emt 0:00:19]} e6 {[%emt 0:00:40]} 4. b3 {[%emt 0:00:26]} Bd6 {[%emt 0:01:03]} 5. Bb2 {[%emt 0:00:31]} O-O {[%emt 0:00:14]} 6. Nc3 {[%emt 0:01:42]} Re8 {[%emt 0:01:03]} 7. Be2 {[%emt 0:02:21]} Nbd7 {[%emt 0:02:38]} 8. Qc2 {[%emt 0:00:52]} a6 {[%emt 0:05:21]} 9. Rg1 {[%emt 0:13:08]} b6 {[%emt 0:06:27]} 10. g4 {[%emt 0:03:50]} Bb7 {[%emt 0:01:37]} 11. d3 {[%emt 0:03:24]} Ne5 {[%emt 0:08:18]} 12. Nxe5 {[%emt 0:10:34]} Bxe5 {[%emt 0:00:07]} 13. g5 {[%emt 0:00:19]} Nd7 {[%emt 0:04:12]} 14. d4 {[%emt 0:01:01]} Bxh2 {[%emt 0:21:16]} 15. Rg4 {[%emt 0:07:17]} Bd6 {[%emt 0:04:58]} 16. O-O-O {[%emt 0:02:37]} Nf8 {[%emt 0:00:33]} 17. f4 {[%emt 0:09:52]} c5 {[%emt 0:05:34]} 18. dxc5 {[%emt 0:08:21]} Bxc5 {[%emt 0:00:09]} 19. Kb1 {[%emt 0:00:19]} Rc8 {[%emt 0:07:37]} 20. Bd3 {[%emt 0:03:01]} Rc7 {[%emt 0:03:24]} 21. Qh2 {[%emt 0:02:48]} Rd7 {[%emt 0:04:43]} 22. Rh1 $2 {[%emt 0:13:27]} (22. Rh4 $1 $18 f5 (22... Bxe3 $2 23. Rxh7 f6 24. gxf6 $18) 23. gxf6 dxc4 24. Rxh7 (24. Bxh7+ Nxh7 25. Rxd7 Qxd7 $11) 24... Qxf6 (24... cxd3 $2 25. Rh8+ $18)) 22... g6 $14 {[%emt 0:05:42]} 23. Rh4 {[%emt 0:02:29]} ({Better is} 23. cxd5 $16 {aiming for Qh6.} Bxd5 24. Nxd5 Rxd5 25. Be2 (25. Bxa6 $2 Rd1+ 26. Kc2 Rxh1 $17)) 23... f5 $1 $15 {[%emt 0:01:03]} (23... Bxe3 24. Rxh7 Nxh7 25. Qxh7+ Kf8 26. Nxd5 (26. Qh8+ Ke7 $18) 26... exd5 27. Qh8+ Ke7 28. Qf6+ Kf8 29. Rh8#) 24. gxf6 {[%emt 0:01:37]} dxc4 {[%emt 0:01:33]} 25. Bc2 {[%emt 0:05:54]} Bxe3 {[%emt 0:06:03]} (25... Qxf6 $2 26. Ne4 $18) (25... Bxh1 $15 {keeps the upper hand.} 26. Qxh1 Bxe3 (26... Qxf6 $2 27. Ne4 $18) (26... cxb3 27. axb3 Qc7 28. Rh3 $17)) 26. Rd1 $1 $16 {[%emt 0:02:24]} Qc7 {[%emt 0:03:59]} (26... Qxf6 $2 27. Rxd7 (27. bxc4 Qd8 $17) (27. Nd5 Qxb2+ 28. Kxb2 Bxd5 $16) 27... Nxd7 28. Nd5 (28. bxc4 Qf7 $15) 28... exd5 29. Bxf6 Nxf6 30. Qg3 $18) 27. Rxd7 $1 {[%emt 0:00:07]} Qxd7 {[%emt 0:00:05]} 28. bxc4 $2 {[%emt 0:00:54]} (28. Nd1 $1 $16 {[%cal Rd1e3] is forced if you want to stay better.} Bc5 29. b4) 28... Bd4 $1 $17 {[%emt 0:01:50]} 29. f5 {[%emt 0:02:09]} exf5 {[%emt 0:02:37]} (29... Bxf6 $17 30. fxg6 hxg6) 30. f7+ $11 {[%emt 0:00:22]} Kxf7 {[%emt 0:00:07]} 31. Rxh7+ $1 {[%emt 0:00:57]} Nxh7 {[%emt 0:00:01]} 32. Qxh7+ {[%emt 0:00:02]} Bg7 {[%emt 0:01:14]} 33. Ne4 {[%emt 0:00:01]} (33. Ne2 $1 $11 {keeps the balance.} Rg8 34. Nf4) 33... Kf8 $1 $17 {[%emt 0:00:34]} 34. Ba3+ {[%emt 0:00:55]} Re7 $1 {[%emt 0:00:02]} 35. Ng5 {[%emt 0:00:04] [#]} Be4 $1 {[%emt 0:01:00]} 36. Nxe4 {[%emt 0:01:27] [#]} (36. Bxe7+ $2 {loses.} Qxe7 37. Nxe4 Qa3 $19 (37... fxe4 $2 38. Qh2 $19) (37... fxe4 $2 38. Qh3 $19)) 36... Qd4 $1 {[%emt 0:00:25]} ({But not} 36... fxe4 $6 37. Qxg6 (37. Bxe7+ $2 {perishes.} Qxe7 38. Qh2 e3 $19) 37... Qd4 38. Bxe7+ Kxe7 39. Qxe4+ Kd6 40. c5+ Kxc5 41. Qxd4+ Bxd4 42. a3 $11) 37. Bxe7+ {[%emt 0:02:45]} Kxe7 {[%emt 0:00:01]} 38. Kc1 {[%emt 0:00:00]} fxe4 {[%emt 0:00:54]} 39. Qh4+ {[%emt 0:00:00]} Kf8 {[%emt 0:00:42]} (39... Kd6 {simplifies} 40. Qxe4 g5 41. Qxd4+ Bxd4 42. Bf5 Ke5) 40. Qxe4 {[%emt 0:00:00]} Qg1+ {[%emt 0:00:30]} 41. Kd2 {[%emt 0:00:11]} Qf2+ {[%emt 0:00:11]} 42. Kd3 {[%emt 0:01:22]} Qf1+ {[%emt 0:00:44]} (42... Bf6 $15 {was preferrable.}) 43. Kd2 $11 {[%emt 0:00:17]} Qf2+ {[%emt 0:00:24]} (43... Bb2 $11) 44. Kd3 $1 $15 {[%emt 0:00:01]} a5 {[%emt 0:00:31]} 45. Qa8+ {[%emt 0:01:19]} Ke7 {[%emt 0:00:10]} 46. Qe4+ {[%emt 0:00:14]} Kf6 {[%emt 0:01:05]} 47. Qd4+ {[%emt 0:00:16]} Qxd4+ {[%emt 0:00:02]} 48. Kxd4 {[%emt 0:00:05]} g5 {[%emt 0:00:55]} 49. Ke4 {[%emt 0:00:05]} Ke6 {[%emt 0:00:07]} 50. Ba4 {[%emt 0:00:11]} Be5 {[%emt 0:00:19]} 51. Kf3 {[%emt 0:00:06]} Kd6 {[%emt 0:00:10]} 52. Bb5 {[%emt 0:00:04]} Kc5 {[%emt 0:00:06]} 53. a4 {[%emt 0:00:04]} Bf4 {[%emt 0:00:55]} 54. Kg4 {[%emt 0:00:05]} Bd2 {[%emt 0:00:48]} 55. Kf3 {[%emt 0:00:05]} 1/2-1/2